[Event "Titled Tuesday Blitz April 19 Late 2022"]
[White "Sjugirov, Sanan"]
[Black "Suder, Jakub"]
[WhiteFideId "4189302"]
[BlackFideId "1195310"]
[WhiteElo "2602"]
[BlackElo "2058"]
[Result "1-0"]
[Round "04"]
[TimeControl "180+1"]
[Date "2022.04.19"]
[WhiteClock "0:00:26"]
[BlackClock "0:00:05"]

1. d4 {[%clk 0:03:00]}  d5 {[%clk 0:02:53]} 2. Nf3 {[%clk 0:03:00]}  e6 {[%clk 0:02:53]} 3. Bf4 {[%clk 0:03:01]}  c5 {[%clk 0:02:52]} 4. e3 {[%clk 0:03:01]}  Nc6 {[%clk 0:02:52]} 5. c3 {[%clk 0:03:01]}  Nf6 {[%clk 0:02:52]} 6. Nbd2 {[%clk 0:03:00]}  Be7 {[%clk 0:02:53]} 7. Bd3 {[%clk 0:02:59]}  Nh5 {[%clk 0:02:53]} 8. Be5 {[%clk 0:02:59]}  Nxe5 {[%clk 0:02:51]} 9. dxe5 {[%clk 0:02:59]}  g6 {[%clk 0:02:51]} 10. Qe2 {[%clk 0:02:38]}  O-O {[%clk 0:02:48]} 11. h4 {[%clk 0:02:37]}  f5 {[%clk 0:02:37]} 12. exf6 {[%clk 0:02:35]}  Nxf6 {[%clk 0:02:26]} 13. h5 {[%clk 0:02:33]}  Nxh5 {[%clk 0:02:24]} 14. Ne5 {[%clk 0:02:20]}  Qe8 {[%clk 0:02:17]} 15. Qg4 {[%clk 0:02:01]}  Rf5 {[%clk 0:01:21]} 16. Nxg6 {[%clk 0:01:30]}  hxg6 {[%clk 0:00:42]} 17. Rxh5 {[%clk 0:01:29]}  Rxh5 {[%clk 0:00:42]} 18. Bxg6 {[%clk 0:01:29]}  Rg5 {[%clk 0:00:42]} 19. Qxg5 {[%clk 0:01:29]}  Bxg5 {[%clk 0:00:42]} 20. Bxe8 {[%clk 0:01:29]}  Kg7 {[%clk 0:00:40]} 21. Nf3 {[%clk 0:01:24]}  Bf6 {[%clk 0:00:40]} 22. O-O-O {[%clk 0:01:17]}  b6 {[%clk 0:00:39]} 23. Bc6 {[%clk 0:01:11]}  Rb8 {[%clk 0:00:36]} 24. e4 {[%clk 0:01:10]}  dxe4 {[%clk 0:00:31]} 25. Bxe4 {[%clk 0:01:10]}  Kf7 {[%clk 0:00:24]} 26. Rh1 {[%clk 0:01:08]}  Ba6 {[%clk 0:00:21]} 27. Rh7+ {[%clk 0:01:06]}  Bg7 {[%clk 0:00:22]} 28. Ne5+ {[%clk 0:01:04]}  Kg8 {[%clk 0:00:20]} 29. Nc6 {[%clk 0:00:58]}  Rf8 {[%clk 0:00:20]} 30. f3 {[%clk 0:00:54]}  Rf7 {[%clk 0:00:15]} 31. Rh1 {[%clk 0:00:52]}  Bc4 {[%clk 0:00:14]} 32. Kc2 {[%clk 0:00:49]}  Rc7 {[%clk 0:00:10]} 33. Rd1 {[%clk 0:00:48]}  Bd5 {[%clk 0:00:08]} 34. Nd8 {[%clk 0:00:41]}  Rd7 {[%clk 0:00:04]} 35. Bxd5 {[%clk 0:00:37]}  exd5 {[%clk 0:00:05]} 36. Ne6 {[%clk 0:00:37]}  Bh6 {[%clk 0:00:05]} 37. Rh1 {[%clk 0:00:33]}  Be3 {[%clk 0:00:03]} 38. Kd3 {[%clk 0:00:33]}  d4 {[%clk 0:00:03]} 39. cxd4 {[%clk 0:00:33]}  cxd4 {[%clk 0:00:04]} 40. Rh4 {[%clk 0:00:26]}  Kf7 {[%clk 0:00:04]} 41. Nxd4 {[%clk 0:00:26]}  Bg1 {[%clk 0:00:05]} 42. Rh7+ {[%clk 0:00:26]} 1-0


[Site "https://www.chess.com"]

[Event "Titled Tuesday Blitz April 19 Late 2022"]
[White "Sliwicki, Damian"]
[Black "Maevsky, Nikolay"]
[WhiteFideId "1127128"]
[BlackFideId "4198220"]
[WhiteElo "2084"]
[BlackElo "2126"]
[Result "1/2-1/2"]
[Round "04"]
[TimeControl "180+1"]
[Date "2022.04.19"]
[WhiteClock "0:00:04"]
[BlackClock "0:00:06"]

1. e4 {[%clk 0:03:00]}  g6 {[%clk 0:02:58]} 2. d4 {[%clk 0:02:56]}  Bg7 {[%clk 0:02:58]} 3. Nc3 {[%clk 0:02:54]}  d6 {[%clk 0:02:59]} 4. Be3 {[%clk 0:02:53]}  a6 {[%clk 0:02:59]} 5. Nf3 {[%clk 0:02:48]}  b5 {[%clk 0:02:59]} 6. h4 {[%clk 0:02:47]}  h5 {[%clk 0:02:49]} 7. d5 {[%clk 0:02:31]}  c5 {[%clk 0:02:43]} 8. dxc6 {[%clk 0:02:28]}  Nxc6 {[%clk 0:02:43]} 9. Nd5 {[%clk 0:02:23]}  Rb8 {[%clk 0:02:41]} 10. c3 {[%clk 0:02:10]}  Nf6 {[%clk 0:02:40]} 11. Nxf6+ {[%clk 0:02:04]}  Bxf6 {[%clk 0:02:40]} 12. Be2 {[%clk 0:02:01]}  O-O {[%clk 0:02:34]} 13. Ng5 {[%clk 0:01:55]}  Ne5 {[%clk 0:02:30]} 14. Bxh5 {[%clk 0:01:53]}  Bxg5 {[%clk 0:02:16]} 15. hxg5 {[%clk 0:01:49]}  Nc4 {[%clk 0:02:06]} 16. Bg4 {[%clk 0:00:35]}  Nxe3 {[%clk 0:01:59]} 17. fxe3 {[%clk 0:00:36]}  e6 {[%clk 0:00:55]} 18. Qf3 {[%clk 0:00:20]}  Qxg5 {[%clk 0:00:55]} 19. O-O-O {[%clk 0:00:18]}  Kg7 {[%clk 0:00:44]} 20. Rdf1 {[%clk 0:00:17]}  Bb7 {[%clk 0:00:37]} 21. Kb1 {[%clk 0:00:17]}  f5 {[%clk 0:00:30]} 22. Qh3 {[%clk 0:00:14]}  Rh8 {[%clk 0:00:30]} 23. Qg3 {[%clk 0:00:11]}  Bxe4+ {[%clk 0:00:27]} 24. Ka1 {[%clk 0:00:11]}  Qxg4 {[%clk 0:00:26]} 25. Qxd6 {[%clk 0:00:10]}  Rxh1 {[%clk 0:00:16]} 26. Qe7+ {[%clk 0:00:10]}  Kg8 {[%clk 0:00:13]} 27. Rxh1 {[%clk 0:00:11]}  Qh5 {[%clk 0:00:10]} 28. Rxh5 {[%clk 0:00:10]}  gxh5 {[%clk 0:00:10]} 29. Qxe6+ {[%clk 0:00:10]}  Kh7 {[%clk 0:00:09]} 30. Qf7+ {[%clk 0:00:10]}  Kh8 {[%clk 0:00:09]} 31. Qf6+ {[%clk 0:00:10]}  Kh7 {[%clk 0:00:09]} 32. a3 {[%clk 0:00:09]}  Rg8 {[%clk 0:00:09]} 33. Qf7+ {[%clk 0:00:09]}  Rg7 {[%clk 0:00:09]} 34. Qxh5+ {[%clk 0:00:09]}  Kg8 {[%clk 0:00:09]} 35. Qe8+ {[%clk 0:00:08]}  Kh7 {[%clk 0:00:10]} 36. Qh5+ {[%clk 0:00:08]}  Kg8 {[%clk 0:00:10]} 37. g3 {[%clk 0:00:08]}  Rg4 {[%clk 0:00:08]} 38. Qe8+ {[%clk 0:00:08]}  Kg7 {[%clk 0:00:08]} 39. Qe7+ {[%clk 0:00:08]}  Kg8 {[%clk 0:00:08]} 40. Qd8+ {[%clk 0:00:08]}  Kg7 {[%clk 0:00:09]} 41. Qc7+ {[%clk 0:00:09]}  Kh6 {[%clk 0:00:09]} 42. a4 {[%clk 0:00:08]}  bxa4 {[%clk 0:00:08]} 43. Ka2 {[%clk 0:00:09]}  Kh5 {[%clk 0:00:07]} 44. Qh7+ {[%clk 0:00:07]}  Kg5 {[%clk 0:00:07]} 45. Qg7+ {[%clk 0:00:06]}  Kh5 {[%clk 0:00:07]} 46. Qf7+ {[%clk 0:00:07]}  Kg5 {[%clk 0:00:07]} 47. Qe7+ {[%clk 0:00:07]}  Kh5 {[%clk 0:00:07]} 48. Qe5 {[%clk 0:00:07]}  Bc2 {[%clk 0:00:06]} 49. Ka3 {[%clk 0:00:07]}  Kg5 {[%clk 0:00:06]} 50. Qg7+ {[%clk 0:00:06]}  Kh5 {[%clk 0:00:06]} 51. Qh7+ {[%clk 0:00:07]}  Kg5 {[%clk 0:00:06]} 52. Qg7+ {[%clk 0:00:08]}  Kh5 {[%clk 0:00:07]} 53. Qf7+ {[%clk 0:00:08]}  Kg5 {[%clk 0:00:07]} 54. Qg8+ {[%clk 0:00:08]}  Kh5 {[%clk 0:00:07]} 55. Qe8+ {[%clk 0:00:08]}  Kg5 {[%clk 0:00:07]} 56. Qe7+ {[%clk 0:00:09]}  Kh5 {[%clk 0:00:07]} 57. Qe6 {[%clk 0:00:08]}  Kg5 {[%clk 0:00:06]} 58. Qd6 {[%clk 0:00:07]}  Kh5 {[%clk 0:00:06]} 59. Qd2 {[%clk 0:00:07]}  Bb3 {[%clk 0:00:06]} 60. Qh2+ {[%clk 0:00:05]}  Kg5 {[%clk 0:00:06]} 61. Qf2 {[%clk 0:00:05]}  Kg6 {[%clk 0:00:06]} 62. Qf3 {[%clk 0:00:04]}  Kg5 {[%clk 0:00:07]} 63. Qf2 {[%clk 0:00:04]}  Re4 {[%clk 0:00:07]} 64. Qh2 {[%clk 0:00:04]}  Rg4 {[%clk 0:00:06]} 65. Qf2 {[%clk 0:00:04]} 1/2-1/2


[Site "https://www.chess.com"]

[Event "Titled Tuesday Blitz April 19 Late 2022"]
[White "Svane, Rasmus"]
[Black "Petrovskyi, Vadym"]
[WhiteFideId "4657101"]
[BlackFideId "14165210"]
[WhiteElo "2645"]
[BlackElo "2400"]
[Result "1-0"]
[Round "04"]
[TimeControl "180+1"]
[Date "2022.04.19"]
[WhiteClock "0:00:41"]
[BlackClock "0:00:12"]

1. Nf3 {[%clk 0:03:00]}  Nf6 {[%clk 0:03:00]} 2. g3 {[%clk 0:02:58]}  g6 {[%clk 0:02:59]} 3. Bg2 {[%clk 0:02:57]}  Bg7 {[%clk 0:03:00]} 4. O-O {[%clk 0:02:57]}  O-O {[%clk 0:03:01]} 5. d4 {[%clk 0:02:57]}  d6 {[%clk 0:03:01]} 6. Re1 {[%clk 0:02:57]}  c5 {[%clk 0:02:58]} 7. dxc5 {[%clk 0:02:57]}  dxc5 {[%clk 0:02:58]} 8. c3 {[%clk 0:02:58]}  Nc6 {[%clk 0:02:56]} 9. Qxd8 {[%clk 0:02:58]}  Rxd8 {[%clk 0:02:55]} 10. Be3 {[%clk 0:02:58]}  Nd7 {[%clk 0:02:33]} 11. Rd1 {[%clk 0:02:58]}  Rb8 {[%clk 0:02:29]} 12. Ne1 {[%clk 0:02:56]}  Re8 {[%clk 0:02:18]} 13. Na3 {[%clk 0:02:51]}  Nce5 {[%clk 0:02:14]} 14. h3 {[%clk 0:02:37]}  a6 {[%clk 0:02:09]} 15. f4 {[%clk 0:02:33]}  Nc6 {[%clk 0:02:08]} 16. Nd3 {[%clk 0:02:34]}  e5 {[%clk 0:02:05]} 17. Kf2 {[%clk 0:02:27]}  Nd4 {[%clk 0:01:43]} 18. Nxe5 {[%clk 0:02:11]}  Nxe5 {[%clk 0:01:34]} 19. cxd4 {[%clk 0:02:11]}  cxd4 {[%clk 0:01:26]} 20. Bxd4 {[%clk 0:02:12]}  Nc6 {[%clk 0:01:26]} 21. Bxg7 {[%clk 0:02:10]}  Kxg7 {[%clk 0:01:27]} 22. Nc4 {[%clk 0:02:07]}  Be6 {[%clk 0:01:25]} 23. Nd6 {[%clk 0:02:07]}  Red8 {[%clk 0:01:24]} 24. b3 {[%clk 0:01:59]}  Nb4 {[%clk 0:01:03]} 25. Rd2 {[%clk 0:01:59]}  Nd5 {[%clk 0:00:56]} 26. Nxb7 {[%clk 0:01:41]}  Rxb7 {[%clk 0:00:51]} 27. e4 {[%clk 0:01:41]}  Rd6 {[%clk 0:00:35]} 28. exd5 {[%clk 0:01:38]}  Bd7 {[%clk 0:00:35]} 29. Rc1 {[%clk 0:01:38]}  a5 {[%clk 0:00:35]} 30. Rc4 {[%clk 0:01:29]}  Bb5 {[%clk 0:00:29]} 31. Rc5 {[%clk 0:01:28]}  a4 {[%clk 0:00:28]} 32. b4 {[%clk 0:01:25]}  a3 {[%clk 0:00:26]} 33. Rd4 {[%clk 0:01:23]}  Bd7 {[%clk 0:00:22]} 34. Rc3 {[%clk 0:01:16]}  Ra7 {[%clk 0:00:21]} 35. Rdc4 {[%clk 0:01:12]}  Rb6 {[%clk 0:00:19]} 36. Ke3 {[%clk 0:01:08]}  Kf6 {[%clk 0:00:19]} 37. Kd4 {[%clk 0:01:07]}  Ke7 {[%clk 0:00:20]} 38. Rb3 {[%clk 0:00:54]}  Kd6 {[%clk 0:00:19]} 39. g4 {[%clk 0:00:53]}  f6 {[%clk 0:00:16]} 40. Be4 {[%clk 0:00:52]}  Bb5 {[%clk 0:00:14]} 41. Rc5 {[%clk 0:00:49]}  Bd7 {[%clk 0:00:14]} 42. Bd3 {[%clk 0:00:46]}  h5 {[%clk 0:00:13]} 43. gxh5 {[%clk 0:00:45]}  gxh5 {[%clk 0:00:14]} 44. h4 {[%clk 0:00:46]}  Rb8 {[%clk 0:00:14]} 45. Be4 {[%clk 0:00:44]}  Rg8 {[%clk 0:00:13]} 46. Ra5 {[%clk 0:00:42]}  Rc7 {[%clk 0:00:13]} 47. Ra6+ {[%clk 0:00:42]}  Bc6 {[%clk 0:00:12]} 48. Rxc6+ {[%clk 0:00:41]} 1-0


[Site "https://www.chess.com"]

[Event "Titled Tuesday Blitz April 19 Late 2022"]
[White "Wachinger, Guenther"]
[Black "Taichman, Ori"]
[WhiteFideId "4604261"]
[BlackFideId "2804069"]
[WhiteElo "2212"]
[BlackElo "2227"]
[Result "1-0"]
[Round "04"]
[TimeControl "180+1"]
[Date "2022.04.19"]
[WhiteClock "0:00:02"]
[BlackClock "0:00:09"]

1. e4 {[%clk 0:03:00]}  c5 {[%clk 0:02:57]} 2. Nf3 {[%clk 0:03:00]}  Nc6 {[%clk 0:02:56]} 3. d4 {[%clk 0:02:57]}  cxd4 {[%clk 0:02:57]} 4. Nxd4 {[%clk 0:02:57]}  d5 {[%clk 0:02:57]} 5. Nc3 {[%clk 0:02:31]}  dxe4 {[%clk 0:02:33]} 6. Bb5 {[%clk 0:02:30]}  Bd7 {[%clk 0:02:32]} 7. O-O {[%clk 0:02:28]}  Nf6 {[%clk 0:02:25]} 8. Re1 {[%clk 0:02:19]}  Nxd4 {[%clk 0:02:22]} 9. Qxd4 {[%clk 0:02:08]}  Bxb5 {[%clk 0:02:22]} 10. Nxb5 {[%clk 0:02:06]}  a6 {[%clk 0:01:44]} 11. Qxd8+ {[%clk 0:01:48]}  Rxd8 {[%clk 0:01:45]} 12. Nc3 {[%clk 0:01:45]}  e6 {[%clk 0:01:39]} 13. Bg5 {[%clk 0:01:38]}  Be7 {[%clk 0:01:39]} 14. Nxe4 {[%clk 0:01:37]}  Nxe4 {[%clk 0:01:37]} 15. Bxe7 {[%clk 0:01:37]}  Kxe7 {[%clk 0:01:19]} 16. Rxe4 {[%clk 0:01:36]}  Rc8 {[%clk 0:01:08]} 17. c3 {[%clk 0:01:36]}  Rhd8 {[%clk 0:01:08]} 18. Re2 {[%clk 0:01:36]}  Rd5 {[%clk 0:01:03]} 19. f3 {[%clk 0:01:34]}  e5 {[%clk 0:01:00]} 20. Kf2 {[%clk 0:01:34]}  Ke6 {[%clk 0:00:55]} 21. Rae1 {[%clk 0:01:33]}  Rcd8 {[%clk 0:00:55]} 22. Ke3 {[%clk 0:01:30]}  Rd3+ {[%clk 0:00:54]} 23. Kf2 {[%clk 0:01:30]}  f6 {[%clk 0:00:54]} 24. Re3 {[%clk 0:01:28]}  Rd2+ {[%clk 0:00:54]} 25. R3e2 {[%clk 0:01:28]}  h5 {[%clk 0:00:42]} 26. Rxd2 {[%clk 0:01:27]}  Rxd2+ {[%clk 0:00:43]} 27. Re2 {[%clk 0:01:28]}  Rd1 {[%clk 0:00:34]} 28. Re1 {[%clk 0:01:28]}  Rxe1 {[%clk 0:00:34]} 29. Kxe1 {[%clk 0:01:29]}  h4 {[%clk 0:00:25]} 30. Ke2 {[%clk 0:01:19]}  g5 {[%clk 0:00:24]} 31. Ke3 {[%clk 0:01:19]}  f5 {[%clk 0:00:23]} 32. c4 {[%clk 0:01:18]}  Kd6 {[%clk 0:00:23]} 33. b4 {[%clk 0:01:17]}  Kc6 {[%clk 0:00:19]} 34. Kd3 {[%clk 0:01:11]}  a5 {[%clk 0:00:16]} 35. a3 {[%clk 0:01:11]}  axb4 {[%clk 0:00:16]} 36. axb4 {[%clk 0:01:11]}  b6 {[%clk 0:00:16]} 37. Ke3 {[%clk 0:01:10]}  Kd6 {[%clk 0:00:17]} 38. Kd3 {[%clk 0:01:11]}  Kc6 {[%clk 0:00:17]} 39. Ke3 {[%clk 0:01:03]}  Kd6 {[%clk 0:00:17]} 40. g4 {[%clk 0:01:04]}  hxg3 {[%clk 0:00:14]} 41. hxg3 {[%clk 0:01:04]}  f4+ {[%clk 0:00:08]} 42. gxf4 {[%clk 0:01:03]}  gxf4+ {[%clk 0:00:08]} 43. Ke4 {[%clk 0:01:02]}  Ke6 {[%clk 0:00:08]} 44. c5 {[%clk 0:01:02]}  b5 {[%clk 0:00:09]} 45. c6 {[%clk 0:00:58]}  Kd6 {[%clk 0:00:09]} 46. c7 {[%clk 0:00:58]}  Kxc7 {[%clk 0:00:10]} 47. Kxe5 {[%clk 0:00:59]}  Kc6 {[%clk 0:00:11]} 48. Ke6 {[%clk 0:00:17]}  Kc7 {[%clk 0:00:08]} 49. Kd5 {[%clk 0:00:17]}  Kd7 {[%clk 0:00:06]} 50. Kc5 {[%clk 0:00:18]}  Ke6 {[%clk 0:00:06]} 51. Kxb5 {[%clk 0:00:18]}  Kd5 {[%clk 0:00:07]} 52. Ka5 {[%clk 0:00:13]}  Kd4 {[%clk 0:00:08]} 53. b5 {[%clk 0:00:13]}  Ke3 {[%clk 0:00:09]} 54. b6 {[%clk 0:00:14]}  Kxf3 {[%clk 0:00:10]} 55. b7 {[%clk 0:00:15]}  Kg2 {[%clk 0:00:10]} 56. b8=Q {[%clk 0:00:16]}  f3 {[%clk 0:00:11]} 57. Qg8+ {[%clk 0:00:15]}  Kf1 {[%clk 0:00:10]} 58. Qc4+ {[%clk 0:00:14]}  Kg1 {[%clk 0:00:10]} 59. Qc1+ {[%clk 0:00:14]}  Kg2 {[%clk 0:00:10]} 60. Qg5+ {[%clk 0:00:13]}  Kf1 {[%clk 0:00:10]} 61. Kb4 {[%clk 0:00:07]}  f2 {[%clk 0:00:10]} 62. Kc3 {[%clk 0:00:08]}  Ke1 {[%clk 0:00:10]} 63. Qe3+ {[%clk 0:00:04]}  Kf1 {[%clk 0:00:11]} 64. Qg3 {[%clk 0:00:04]}  Ke2 {[%clk 0:00:09]} 65. Qd3+ {[%clk 0:00:04]}  Ke1 {[%clk 0:00:10]} 66. Kc2 {[%clk 0:00:02]}  f1=Q {[%clk 0:00:09]} 67. Qd2# {[%clk 0:00:02]} 1-0


[Site "https://www.chess.com"]

[Event "Titled Tuesday Blitz April 19 Late 2022"]
[White "Wu, Derek"]
[Black "Ansh M Shah"]
[WhiteFideId "30914558"]
[BlackFideId "25033379"]
[WhiteElo "2071"]
[BlackElo "1819"]
[Result "1-0"]
[Round "04"]
[TimeControl "180+1"]
[Date "2022.04.19"]
[WhiteClock "0:00:17"]
[BlackClock "0:00:13"]

1. Nf3 {[%clk 0:03:00]}  Nf6 {[%clk 0:02:59]} 2. d4 {[%clk 0:02:58]}  g6 {[%clk 0:02:55]} 3. c4 {[%clk 0:02:58]}  d5 {[%clk 0:02:51]} 4. Nc3 {[%clk 0:02:59]}  Bg7 {[%clk 0:02:51]} 5. e3 {[%clk 0:02:56]}  O-O {[%clk 0:02:32]} 6. cxd5 {[%clk 0:02:51]}  Nxd5 {[%clk 0:02:33]} 7. Bc4 {[%clk 0:02:51]}  Nxc3 {[%clk 0:02:32]} 8. bxc3 {[%clk 0:02:51]}  c5 {[%clk 0:02:32]} 9. O-O {[%clk 0:02:51]}  b6 {[%clk 0:02:33]} 10. a4 {[%clk 0:02:13]}  Ba6 {[%clk 0:02:30]} 11. Bxa6 {[%clk 0:02:10]}  Nxa6 {[%clk 0:02:31]} 12. a5 {[%clk 0:02:06]}  cxd4 {[%clk 0:01:56]} 13. cxd4 {[%clk 0:02:03]}  Qd5 {[%clk 0:01:56]} 14. axb6 {[%clk 0:01:56]}  axb6 {[%clk 0:01:57]} 15. Qe2 {[%clk 0:01:56]}  Nc7 {[%clk 0:01:44]} 16. e4 {[%clk 0:01:47]}  Qb5 {[%clk 0:01:43]} 17. Qxb5 {[%clk 0:01:44]}  Nxb5 {[%clk 0:01:44]} 18. Rxa8 {[%clk 0:01:32]}  Rxa8 {[%clk 0:01:43]} 19. Be3 {[%clk 0:01:33]}  Ra4 {[%clk 0:01:34]} 20. e5 {[%clk 0:01:12]}  f6 {[%clk 0:01:27]} 21. h4 {[%clk 0:01:07]}  fxe5 {[%clk 0:01:27]} 22. dxe5 {[%clk 0:01:08]}  Nc3 {[%clk 0:01:21]} 23. Kh2 {[%clk 0:01:01]}  Ne2 {[%clk 0:01:18]} 24. g3 {[%clk 0:00:58]}  b5 {[%clk 0:01:00]} 25. Rd1 {[%clk 0:00:49]}  h6 {[%clk 0:00:50]} 26. h5 {[%clk 0:00:43]}  gxh5 {[%clk 0:00:42]} 27. e6 {[%clk 0:00:41]}  b4 {[%clk 0:00:32]} 28. Rd8+ {[%clk 0:00:33]}  Kh7 {[%clk 0:00:32]} 29. Rb8 {[%clk 0:00:25]}  Nc3 {[%clk 0:00:24]} 30. Nh4 {[%clk 0:00:25]}  Nd5 {[%clk 0:00:18]} 31. Nf5 {[%clk 0:00:21]}  Nxe3 {[%clk 0:00:17]} 32. Nxe3 {[%clk 0:00:20]}  Ra2 {[%clk 0:00:16]} 33. Kg2 {[%clk 0:00:19]}  Rb2 {[%clk 0:00:15]} 34. Nf5 {[%clk 0:00:19]}  Bf6 {[%clk 0:00:15]} 35. Rb7 {[%clk 0:00:19]}  Kg6 {[%clk 0:00:16]} 36. Nxe7+ {[%clk 0:00:19]}  Bxe7 {[%clk 0:00:17]} 37. Rxe7 {[%clk 0:00:19]}  Kf6 {[%clk 0:00:17]} 38. Re8 {[%clk 0:00:19]}  b3 {[%clk 0:00:17]} 39. Rh8 {[%clk 0:00:20]}  Re2 {[%clk 0:00:12]} 40. Rxh6+ {[%clk 0:00:19]}  Ke7 {[%clk 0:00:12]} 41. Rxh5 {[%clk 0:00:18]}  b2 {[%clk 0:00:13]} 42. Rb5 {[%clk 0:00:19]}  Kxe6 {[%clk 0:00:13]} 43. Kf3 {[%clk 0:00:19]}  Rc2 {[%clk 0:00:14]} 44. g4 {[%clk 0:00:19]}  Kf6 {[%clk 0:00:12]} 45. Kg3 {[%clk 0:00:19]}  Rc3+ {[%clk 0:00:12]} 46. f3 {[%clk 0:00:18]}  Rc2 {[%clk 0:00:12]} 47. Kf4 {[%clk 0:00:18]}  Rc4+ {[%clk 0:00:12]} 48. Kg3 {[%clk 0:00:18]}  Rc2 {[%clk 0:00:13]} 49. f4 {[%clk 0:00:19]}  Ke6 {[%clk 0:00:12]} 50. g5 {[%clk 0:00:18]}  Kd6 {[%clk 0:00:13]} 51. Kg4 {[%clk 0:00:18]}  Kc6 {[%clk 0:00:13]} 52. Rb8 {[%clk 0:00:18]}  Kc5 {[%clk 0:00:14]} 53. g6 {[%clk 0:00:16]}  Kc4 {[%clk 0:00:13]} 54. Kf5 {[%clk 0:00:16]}  Kc3 {[%clk 0:00:13]} 55. g7 {[%clk 0:00:16]}  Rg2 {[%clk 0:00:13]} 56. Kf6 {[%clk 0:00:16]}  Kc2 {[%clk 0:00:13]} 57. f5 {[%clk 0:00:15]}  b1=Q {[%clk 0:00:13]} 58. Rxb1 {[%clk 0:00:15]}  Kxb1 {[%clk 0:00:14]} 59. Kf7 {[%clk 0:00:14]}  Kc2 {[%clk 0:00:14]} 60. f6 {[%clk 0:00:14]}  Kd3 {[%clk 0:00:13]} 61. g8=Q {[%clk 0:00:15]}  Rxg8 {[%clk 0:00:13]} 62. Kxg8 {[%clk 0:00:16]}  Ke4 {[%clk 0:00:13]} 63. f7 {[%clk 0:00:17]} 1-0


[Site "https://www.chess.com"]

[Event "Titled Tuesday Blitz April 19 Late 2022"]
[White "Zong, Davis"]
[Black "Gnechko, Ruslan"]
[WhiteFideId "30903955"]
[BlackFideId "14135868"]
[WhiteElo "2061"]
[BlackElo "2289"]
[Result "1-0"]
[Round "04"]
[TimeControl "180+1"]
[Date "2022.04.19"]
[WhiteClock "0:00:09"]
[BlackClock "0:00:13"]

1. e4 {[%clk 0:03:00]}  c6 {[%clk 0:02:59]} 2. d4 {[%clk 0:03:00]}  d5 {[%clk 0:03:00]} 3. exd5 {[%clk 0:02:59]}  cxd5 {[%clk 0:03:01]} 4. Bd3 {[%clk 0:02:59]}  Nc6 {[%clk 0:03:01]} 5. c3 {[%clk 0:03:00]}  Nf6 {[%clk 0:03:02]} 6. h3 {[%clk 0:02:56]}  g6 {[%clk 0:03:01]} 7. Nf3 {[%clk 0:02:56]}  Bf5 {[%clk 0:03:01]} 8. Bxf5 {[%clk 0:02:53]}  gxf5 {[%clk 0:03:02]} 9. O-O {[%clk 0:02:53]}  Rg8 {[%clk 0:03:02]} 10. Bf4 {[%clk 0:02:49]}  e6 {[%clk 0:03:02]} 11. Qb3 {[%clk 0:02:45]}  Qd7 {[%clk 0:02:57]} 12. Nbd2 {[%clk 0:02:41]}  Ne4 {[%clk 0:02:57]} 13. Rfe1 {[%clk 0:02:25]}  Bd6 {[%clk 0:02:52]} 14. Bxd6 {[%clk 0:02:15]}  Qxd6 {[%clk 0:02:52]} 15. c4 {[%clk 0:02:09]}  Nxd2 {[%clk 0:02:34]} 16. Nxd2 {[%clk 0:02:07]}  Nxd4 {[%clk 0:02:34]} 17. Qxb7 {[%clk 0:01:58]}  Rb8 {[%clk 0:02:30]} 18. Qxa7 {[%clk 0:01:58]}  dxc4 {[%clk 0:02:08]} 19. Qa4+ {[%clk 0:01:41]}  Kf8 {[%clk 0:02:06]} 20. Rab1 {[%clk 0:01:06]}  Qf4 {[%clk 0:01:56]} 21. Qa3+ {[%clk 0:01:06]}  Ke8 {[%clk 0:01:55]} 22. Qe3 {[%clk 0:00:53]}  Qh4 {[%clk 0:01:32]} 23. Nxc4 {[%clk 0:00:45]}  Rd8 {[%clk 0:00:56]} 24. Red1 {[%clk 0:00:32]}  f4 {[%clk 0:00:55]} 25. Rxd4 {[%clk 0:00:24]}  Rxd4 {[%clk 0:00:45]} 26. Qxd4 {[%clk 0:00:24]}  Qxh3 {[%clk 0:00:45]} 27. Qe4 {[%clk 0:00:11]}  Qg4 {[%clk 0:00:29]} 28. Ne5 {[%clk 0:00:11]}  Qg7 {[%clk 0:00:21]} 29. Rd1 {[%clk 0:00:10]}  Qf6 {[%clk 0:00:13]} 30. Qa8+ {[%clk 0:00:09]} 1-0


[Site "https://www.chess.com"]

[Event "Titled Tuesday Blitz April 19 Late 2022"]
[White "Ansh M Shah"]
[Black "Lock, Gavin R"]
[WhiteFideId "25033379"]
[BlackFideId "408646"]
[WhiteElo "1819"]
[BlackElo "2104"]
[Result "1-0"]
[Round "05"]
[TimeControl "180+1"]
[Date "2022.04.19"]
[WhiteClock "0:00:35"]
[BlackClock "0:00:01"]

1. d4 {[%clk 0:03:00]}  d5 {[%clk 0:02:54]} 2. c4 {[%clk 0:03:01]}  e6 {[%clk 0:02:53]} 3. Nf3 {[%clk 0:03:01]}  Nf6 {[%clk 0:02:51]} 4. g3 {[%clk 0:03:01]}  dxc4 {[%clk 0:02:50]} 5. Bg2 {[%clk 0:03:01]}  c5 {[%clk 0:02:47]} 6. O-O {[%clk 0:03:01]}  Nc6 {[%clk 0:02:47]} 7. dxc5 {[%clk 0:02:15]}  Qxd1 {[%clk 0:02:38]} 8. Rxd1 {[%clk 0:02:16]}  Bxc5 {[%clk 0:02:38]} 9. Nbd2 {[%clk 0:02:14]}  c3 {[%clk 0:02:21]} 10. bxc3 {[%clk 0:02:14]}  O-O {[%clk 0:02:20]} 11. Nb3 {[%clk 0:02:12]}  Be7 {[%clk 0:02:11]} 12. Bb2 {[%clk 0:02:12]}  Bd7 {[%clk 0:01:34]} 13. c4 {[%clk 0:02:01]}  Rfc8 {[%clk 0:01:11]} 14. Rac1 {[%clk 0:01:52]}  Be8 {[%clk 0:01:07]} 15. Ne5 {[%clk 0:01:42]}  Nxe5 {[%clk 0:00:53]} 16. Bxe5 {[%clk 0:01:43]}  Bc6 {[%clk 0:00:53]} 17. Bxf6 {[%clk 0:01:29]}  Bxf6 {[%clk 0:00:42]} 18. Bxc6 {[%clk 0:01:29]}  Rxc6 {[%clk 0:00:43]} 19. Rd7 {[%clk 0:01:29]}  b6 {[%clk 0:00:41]} 20. c5 {[%clk 0:01:13]}  h5 {[%clk 0:00:36]} 21. h4 {[%clk 0:00:59]}  bxc5 {[%clk 0:00:15]} 22. Rxc5 {[%clk 0:01:00]}  Rxc5 {[%clk 0:00:15]} 23. Nxc5 {[%clk 0:01:01]}  Rc8 {[%clk 0:00:16]} 24. Ne4 {[%clk 0:00:58]}  Rc2 {[%clk 0:00:13]} 25. Nxf6+ {[%clk 0:00:53]}  gxf6 {[%clk 0:00:13]} 26. Rxa7 {[%clk 0:00:53]}  Rxe2 {[%clk 0:00:14]} 27. a4 {[%clk 0:00:51]}  Kg7 {[%clk 0:00:13]} 28. a5 {[%clk 0:00:52]}  Ra2 {[%clk 0:00:13]} 29. a6 {[%clk 0:00:52]}  f5 {[%clk 0:00:14]} 30. Ra8 {[%clk 0:00:52]}  Kf6 {[%clk 0:00:10]} 31. Kg2 {[%clk 0:00:53]}  Ra3 {[%clk 0:00:09]} 32. Kf1 {[%clk 0:00:48]}  Ra2 {[%clk 0:00:07]} 33. Ke1 {[%clk 0:00:44]}  Kg7 {[%clk 0:00:06]} 34. Kf1 {[%clk 0:00:37]}  Ra3 {[%clk 0:00:05]} 35. Ke2 {[%clk 0:00:37]}  Ra2+ {[%clk 0:00:06]} 36. Ke3 {[%clk 0:00:38]}  Ra3+ {[%clk 0:00:06]} 37. Kf4 {[%clk 0:00:37]}  Kg6 {[%clk 0:00:02]} 38. Ke5 {[%clk 0:00:37]}  Ra2 {[%clk 0:00:01]} 39. a7 {[%clk 0:00:35]} 1-0


[Site "https://www.chess.com"]